Cogmind - Beta 16 @@@ ROGUE MODE // 2025.11.02 @ 00:18:37 Player: Red Box Result: Destroyed by 0Q-CIY(R) with Subdweller Machine Gun Performance ------------- Evolutions (0) 0 Regions Visited (2) 400 Robots Destroyed (18) 90 Value Destroyed (429) 429 Prototype IDs (4) 80 Alien Tech Used (0) 0 Bonus (0) 0 TOTAL SCORE: 999 Bonus ------- None Cogmind --------- Core Integrity 0/250 Matter 300/300 Energy 61/100 System Corruption 0% Temperature Cool (0) Movement Core (250) Ox4 Location -10/Subcaves Parts ------- > --- POWER (1) -------- (None) > --- PROPULSION (2) --- (None) > --- UTILITY (2) ------ Improved Heat Sink Medium Storage Unit > --- WEAPON (2) ------- EM Pulse Gun > --- INVENTORY (10) --- High-capacity Matter Pod (200) Medium Armor Plating Medium Armor Plating Hacking Suite Beam Rifle Beam Rifle Grenade Launcher Peak State ------------ > --- POWER ------------ Ion Engine > --- PROPULSION ------- Wheel Compact Wheel > --- UTILITY ---------- Improved Heat Sink Medium Storage Unit > --- WEAPON ----------- Beam Rifle Beam Rifle > --- INVENTORY -------- Wheel High-capacity Matter Pod Medium Armor Plating Medium Armor Plating Hacking Suite EM Pulse Gun EM Pulse Gun Beam Rifle Beam Rifle Grenade Launcher [Rating: 12] Favorites ----------- Power Ion Engine Engine Ion Engine Propulsion Compact Wheel Treads Light Treads Leg Aluminum Leg Wheel Compact Wheel Utility Improved Terrain Scanner Device Improved Terrain Scanner Storage Small Storage Unit Weapon EM Pulse Gun Energy Gun EM Pulse Gun Ballistic Gun Assault Rifle Special Weapon Mining Laser Build | -11 -10 -10 ------- Run | Yrd Mat Sub Slots Evolved . | . . . Power . | . . . Propulsion . | . . . Utility . | . . . Weapon . | . . . Parts Attached 25 | 7 17 1 Power 2 | 1 1 . Engine 2 | 1 1 . Core . | . . . Reactor . | . . . Propulsion 11 | 2 8 1 Treads 2 | . 2 . Leg 3 | 2 1 . Wheel 6 | . 5 1 Hover . | . . . Flight . | . . . Utility 4 | 2 2 . Device 2 | 1 1 . Storage 2 | 1 1 . Processor . | . . . Hackware . | . . . Protection . | . . . Artifact . | . . . Weapon 8 | 2 6 . Energy Gun 4 | . 4 . Energy Cannon . | . . . Ballistic Gun 3 | 2 1 . Ballistic Cannon . | . . . Launcher . | . . . Special Weapon 1 | . 1 . Impact Weapon . | . . . Slashing Weapon . | . . . Piercing Weapon . | . . . Special Melee Weapon . | . . . Unidentified Prototypes . | . . . Parts Lost 7 | . . 7 Power 1 | . . 1 Propulsion 3 | . . 3 Utility . | . . . Weapon 3 | . . 3 Highest Loss Streak 7 | . . 7 To Critical Strikes . | . . . Average Backups 8 | 3 8 9 Power . | . . . Propulsion 2 | 2 2 . Utility 2 | . 2 4 Weapon 3 | . 3 5 Tool/Special . | . . . Unused Backups 10 | . 3 7 Power 1 | . 1 . Propulsion . | . . . Utility 4 | . . 4 Weapon 5 | . 2 3 Tool/Special . | . . . Average Slot Usage (%) 98 | . 99 84 Engine 13 | . 13 12 Treads 8 | . 9 . Leg 1 | . 1 . Wheel 17 | . 17 16 Device 13 | . 13 14 Storage 14 | . 14 14 Energy Gun 17 | . 17 25 Ballistic Gun 5 | . 5 . Special Weapon 4 | . 4 . Peak Build Rating 12 | 9 12 12 Average Rating 9 | 5 10 10 On Entrance 7 | . 9 12 Avg Prop Armor Cover (%) 11 | . 11 . Naked Turns . | . . . Heaviest Build 22 | 14 22 22 Greatest Support 26 | 20 26 26 Greatest Overweight (x) 4 | . 1 4 Average Overweight (x) . | . . . Largest Inventory Capacity 10 | 8 10 10 Average Capacity 8 | 7 8 10 Most Carried 10 | 8 10 10 Average Carried 8 | 3 8 9 Final Capacity 10 | 8 10 10 Final Carried 10 | 8 10 7 Class Distribution -------------------- 71% | Mutant 28% | Scavenger-Mutant Dominant Class ---------------- Mutant | -10/Materials Scavenger-Mutant | -10/Subcaves Resources | -11 -10 -10 ----------- Run | Yrd Mat Sub Matter Collected 950 | 249 629 72 Remotely . | . . . Salvage Created 593 | 24 491 78 Parts 34 | 4 28 2 Haulers Intercepted 1 | . 1 . Recyclers Shooed . | . . . Parts Field Recycled . | . . . Retrieved Matter . | . . . Parts Self-Destructed . | . . . Prevented . | . . . Parts Restored . | . . . Kills | -11 -10 -10 ------- Run | Yrd Mat Sub Combat Hostiles Destroyed 11 | . 9 2 Guns 8 | . 6 2 AOE 3 | . 3 . Classes Destroyed 9 | 1 7 1 Builder 1 | . 1 . Tunneler 1 | 1 . . Hauler 1 | . 1 . Recycler 1 | . 1 . Operator 1 | . 1 . Watcher 2 | . 2 . Swarmer 2 | . 2 . Grunt 7 | . 7 . Subdweller 2 | . . 2 Best Kill Streak 3 | 1 3 2 Combat Bots Only 3 | . 3 2 Max Kills in Single Turn 2 | 1 2 1 Gunslinging . | . . . Exploded 2 | . 2 . Melee . | . . . Uniques/NPCs Destroyed . | . . . Combat | -11 -10 -10 -------- Run | Yrd Mat Sub Hostile Shots Fired 72 | . 34 38 Missed 20 | . 10 10 Hits 52 | . 24 28 Projectile 52 | . 24 28 Critical Strikes 1 | . . 1 Damage Taken 933 | . 313 620 Core 263 | . 74 189 Absorbed by Shields . | . . . Regen/Repaired (Parts) 15 | . 15 . Core Remaining (%) 100 | 100 . . Volleys Fired 62 | 1 47 14 Largest 2 | 2 2 2 Hottest 112 | 40 112 112 Shots Fired 114 | 2 89 23 Gun 109 | 2 84 23 Cannon . | . . . Launcher . | . . . Special 5 | . 5 . Kinetic 61 | 2 59 . Thermal 30 | . 7 23 Explosive . | . . . Electromagnetic 23 | . 23 . Robot Hit Streak 18 | 1 5 18 Robot Miss Streak 4 | . 4 1 Penetration Max . | . . . Secondary Targets . | . . . Shots Hit Robots 69 | 1 47 21 Core Hits 28 | 1 22 5 Critical Kills . | . . . Critical Parts Destroyed 1 | . 1 . Critical Strikes 4 | . 2 2 Burn 2 | . . 2 Destroy 1 | . 1 . Corrupt 1 | . 1 . Melee Attacks . | . . . Impact . | . . . Slashing . | . . . Piercing . | . . . Sneak Attacks . | . . . Combat Hostiles . | . . . Follow-up Attacks . | . . . Damage Inflicted 1072 | 14 751 307 Guns 912 | 14 591 307 Cannons . | . . . Explosions 136 | . 136 . Melee . | . . . Ramming . | . . . Kinetic 375 | 14 361 . Thermal 483 | . 176 307 Explosive . | . . . Electromagnetic 214 | . 214 . Impact . | . . . Slashing . | . . . Piercing . | . . . Highest Corruption . | . . . Average Corruption . | . . . Corruption Purged . | . . . Corruption Blocked . | . . . Overload Shots . | . . . Overflow Damage . | . . . Projectiles . | . . . Explosions . | . . . Melee . | . . . Knockbacks . | . . . Impact . | . . . Kinetic . | . . . Secondary . | . . . Self-Inflicted Damage . | . . . Shots . | . . . Rammed . | . . . Targets Rammed . | . . . Kicked . | . . . Crushed . | . . . Highest Temperature 40 | . 40 . Average Temperature 14 | . 14 . Received Heat Transfer 189 | . 159 30 Siege Activations . | . . . Martial Activations . | . . . Shielding Activations . | . . . Robots Disrupted . | . . . Combat Hostiles . | . . . Robots Corrupted . | . . . Combat Hostiles . | . . . Parts Fried . | . . . Impact Corruptions . | . . . Robots Melted . | . . . Combat Hostiles . | . . . Parts Melted . | . . . Heat Transferred 1162 | . 237 925 Parts Sabotaged . | . . . Parts Stolen . | . . . Parts Stripped . | . . . Power Chain Reactions 3 | . 3 . Alert | -11 -10 -10 ------- Run | Yrd Mat Sub Maximum Alert Level 1 | . 1 . Low Security (%) 99 | 100 99 . Level 1 . | . . . Level 2 . | . . . Level 3 . | . . . Level 4 . | . . . Level 5 . | . . . High Security . | . . . Max Security . | . . . Peak Influence 204 | 5 204 . Initial . | . . . Average 40 | . 41 . Influence Increases 515 | 5 510 . Destroy 0b10 Robot/C 180 | . 180 . Destroy 0b10 Robot/NC 35 | 5 30 . Destroy Leader 36 | . 36 . Successful Hack 24 | . 24 . Select Force Hacks 60 | . 60 . Disable Machine 15 | . 15 . Destroy Structure 15 | . 15 . Partial Spotted 15 | . 15 . Lose Combat Pursuer 135 | . 135 . Influence Decreases 515 | 5 309 201 Entered New Map 97 | . . 97 Time Decay 354 | 5 309 40 Lost Part 64 | . . 64 Squads Dispatched 2 | . 2 . Investigation 2 | . 2 . Extermination . | . . . Reinforcement . | . . . Assault . | . . . Garrison . | . . . Intercept . | . . . Searches Triggered . | . . . Construction Impeded . | . . . Haulers Reinforced . | . . . Active Scanning Responses . | . . . Cargo Convoy Interrupts . | . . . Stealth | -11 -10 -10 --------- Run | Yrd Mat Sub Distress Signals 3 | . 3 . Communications Jammed . | . . . Distress Signals . | . . . Times Spotted 39 | . 31 8 Peak Tracking Total 6 | . 5 6 Tactical Retreats 8 | . 8 . Traps | -11 -10 -10 ------- Run | Yrd Mat Sub Traps Triggered 1 | . 1 . Indirectly . | . . . Trap Hack Attempts . | . . . Triggered . | . . . Disarmed . | . . . Reprogrammed . | . . . Reused . | . . . Traps Extracted . | . . . Installed . | . . . Triggered . | . . . Machines | -11 -10 -10 ---------- Run | Yrd Mat Sub Machines Disabled 1 | . 1 . Max in Single Turn 1 | . 1 . Machines Repaired . | . . . Machines Dismantled . | . . . Machines Sabotaged . | . . . Overloaded Fab Kills . | . . . Hacking | -11 -10 -10 --------- Run | Yrd Mat Sub Machines Accessed 10 | . 10 . Terminals 7 | . 7 . Fabricators . | . . . Repair Stations 1 | . 1 . Recycling Units 2 | . 2 . Scanalyzers . | . . . Garrison Access . | . . . Total Hacks 31 | . 31 . Successful 19 | . 19 . Failed 12 | . 12 . Catastrophic . | . . . Database Lockouts . | . . . Manual 19 | . 19 . Terminals 24 | . 24 . Fabricators . | . . . Repair Stations 3 | . 3 . Recycling Units 4 | . 4 . Scanalyzers . | . . . Garrison Access . | . . . Terminal Hacks 8 | . 8 . Robot Analysis 4 | . 4 . Prototype ID Bank 2 | . 2 . Terminal Index 1 | . 1 . Locate Traps 1 | . 1 . Fabricator Hacks . | . . . Repair Station Hacks 2 | . 2 . Scan Component 1 | . 1 . Repair 1 | . 1 . Recycling Unit Hacks 1 | . 1 . Retrieve Components 1 | . 1 . Scanalyzer . | . . . Garrison Access Hacks . | . . . Unauthorized Hacks 7 | . 7 . Terminals 4 | . 4 . Botnet 3 | . 3 . Operators 1 | . 1 . Fabricators . | . . . Repair Stations . | . . . Recycling Units 3 | . 3 . Reject 1 | . 1 . Tunnel 2 | . 2 . Scanalyzers . | . . . Garrison Access . | . . . Data Cores Recovered 1 | . 1 . Used 1 | . 1 . Hacking Detections 9 | . 9 . Full Trace Events 1 | . 1 . Feedback Events . | . . . Feedback Blocked . | . . . Robot Schematics Acquired . | . . . Robots Built . | . . . Authchips . | . . . Time . | . . . Total Robot Build Rating . | . . . Part Schematics Acquired . | . . . Parts Built . | . . . Authchips . | . . . Time . | . . . Total Part Build Rating . | . . . Part Studies Acquired . | . . . Parts Repaired 1 | . 1 . Time 38 | . 38 . Parts Recycled . | . . . Recycled Matter . | . . . Retrieved Matter . | . . . Retrieved Components 3 | . 3 . Parts Scanalyzed . | . . . Part Schematics Acquired . | . . . Parts Damaged . | . . . Bothacking | -11 -10 -10 ------------ Run | Yrd Mat Sub Used RIF Installer . | . . . Robots Hacked . | . . . Non-combat . | . . . Combat . | . . . Robot Hacks Applied . | . . . Relay Couplers Released . | . . . Fabnet Peak Effective % . | . . . Robots Rewired . | . . . Allies Hacked . | . . . Hacks Repelled . | . . . Allies | -11 -10 -10 -------- Run | Yrd Mat Sub Total Allies . | . . . Largest Group . | . . . Highest-Rated Group . | . . . Highest-Rated Ally . | . . . Total Orders . | . . . Ally Attacks . | . . . Total Damage . | . . . Kills . | . . . Allies Corrupted . | . . . Allies Melted . | . . . Intel | -11 -10 -10 ------- Run | Yrd Mat Sub Active Infowar (turns) 1699 | 9 1690 . Terrain 1699 | 9 1690 . Robot Analysis Total 4 | . 4 . Derelict Logs Recovered 1 | . . 1 Drone Launches . | . . . Drone Recoveries . | . . . Exploration | -11 -10 -10 ------------- Run | Yrd Mat Sub Turns Passed 2040 | 68 1883 89 Spaces Moved 1202 | 43 1109 50 Core 7 | 6 . 1 Treads 2 | . 2 . Legs 88 | 37 51 . Wheels 1105 | . 1056 49 Hover . | . . . Flight . | . . . Fastest Speed 50 | 50 90 90 Average Speed 100 | 110 100 93 Slowest Speed 250 | 120 160 250 Overloaded Moves . | . . . Propulsion Burnouts . | . . . Robots Hopped . | . . . Potential Cave-ins . | . . . Cave-ins Triggered . | . . . Exploration Rate (%) 35 | 4 98 4 Regions Visited 2 Branch Regions 1 Pre-discovered Areas 2 | . 2 . Known Exits Taken . | . . . Unknown Exits Taken 2 | 1 1 . Scrap Searched 1 | . . 1 Spaces Dug 4 | . 4 . Terrain Destroyed 14 | . 14 . Melee . | . . . Projectile 4 | . 4 . AOE 10 | . 10 . Terrain Rammed . | . . . Walls Destroyed . | . . . Machines Disabled . | . . . Actions | -11 -10 -10 --------- Run | Yrd Mat Sub Total 1909 | 58 1782 69 Wait 565 | . 565 . Move 1200 | 42 1108 50 Hop . | . . . Pick Up 24 | 8 16 . Fast Attach 11 | 7 4 . Attach 6 | . 3 3 Detach . | . . . Swap 22 | . 20 2 Drop 19 | . 19 . Fire 62 | 1 47 14 Melee . | . . . Ram . | . . . Kick . | . . . Crush . | . . . Escape Stasis . | . . . Rewire . | . . . Trap . | . . . Miscellaneous . | . . . Route ------- -11/Scrapyard -10/Materials (discovered 5 exits: [*Mat x3] / [*Min] / [*Sub]) -10/Subcaves History --------- Turn | Location | Event 5 | -11/Scrapyard | Discovered new exit (range 15) 69 | -11/Scrapyard | Entered Materials 304 | -10/Materials | Discovered new exit (range 11) 338 | -10/Materials | Build established: Mutant 382 | -10/Materials | Discovered new exit (range 15) 522 | -10/Materials | Discovered new exit (range 6) 560 | -10/Materials | Discovered new exit (range 3) 1056 | -10/Materials | Discovered new exit (range 15) 1660 | -10/Materials | Repaired Imp. Heat Sink 1731 | -10/Materials | Build established: Scavenger-Mutant 1952 | -10/Materials | Entered Subcaves 1953 | -10/Subcaves | Approached by a straggling Scientist 1954 | -10/Subcaves | Learned Materials emergency access door positions 1998 | -10/Subcaves | Ambushed by Subdweller buried in earth 2024 | -10/Subcaves | Ambushed by swarm of Subdwellers 2026 | -10/Subcaves | Ambushed by Subdwellers from Twisted Machinery 2030 | -10/Subcaves | Core integrity fell below 50% 2036 | -10/Subcaves | Core integrity fell below 20% 2041 | -10/Subcaves | Destroyed by 0Q-CIY(R) with Subdweller Machine Gun Last Messages --------------- 02028_ YZ-BGH(R) emerges from the Twisted Machinery. 02029_ HV Slug penetrates YZ-BGH(R). 02029_ YZ-BGH(R) suffers critical hit (Destroy). 02030_ 52-YR9(R) emerges from the Twisted Machinery. 02031_ Wheel destroyed. 02032_ HV Slug penetrates YZ-BGH(R). 02032_ YZ-BGH(R) suffers critical hit (Destroy). 02032_ Q8-O0D(R) destroyed. 02032_ Ion Engine destroyed. 02035_ YZ-BGH(R) suffers critical hit (Destroy). 02035_ YZ-BGH(R) knocked back. 02037_ Beam Rifle destroyed. 02038_ HV Slug penetrates YZ-BGH(R). 02038_ YZ-BGH(R) knocked back. [Achievement: There's More Where That Came From] 02038_ EM Pulse Gun destroyed. 02039_ Acquired 5 matter. 02040_ Acquired 10 matter. 02040_ YZ-BGH(R) suffers critical hit (Destroy). 02040_ YZ-BGH(R) destroyed. Map ----- +----------------------------------------------------+ | | | | | | | ?????????????????????????????????????????????????? | | ?????????????????????????????????????????????????? | | ?????????????????????????????????????????????????? | | ?????????????????????????????????????????????????? | | ?????????????????????????????????????????????????? | | ?????????????????????????????????????????????????? | | ?????????????????????????????????????????????????? | | ?????????????????????????????????????????????????? | | ?????????????????????????????????????????????????? | | ?????????????????????????????????????????????????? | | ?????????????????????????????????????????????????? | | ?????????????????????????????????????????????????? | | ?????????????????????????????????????????????????? | | ?????????????????????????????????????????????????? | | ?????????????????????????????????????????????????? | | ?????????????????????????????????????????????????? | | ?????????????????????????????????????????????????? | | ?????????????????????????????????????????????????? | | ##???????????????????##??????????????????????????? | | #??????????????????## ##????????????????????????? | | ??????????????????## %R####?????????????????????? | | ##????????????????## ###h""#?????????????????????? | | #???????????????## ##?##@%#?????????????????????? | | #??????????????## ##???#RRRR ??????????????????? | | ##???????????#### ##????########?????????????????? | | #??????????##=%&##??????????????????????????????? | | ###???????### ####???????????????????????????????? | | # #???##### ##??????????????????????????????????? | | ##??## ##???????????????????????????????????? | | # #### ### ##????????????????????????????????????? | | ## # ##?# #?????????????????????????????????????? | | ?# ###??###?????????????????????????????????????? | | ?####????????????????????????????????????????????? | | ?????????????????????????????????????????????????? | | ?????????????????????????????????????????????????? | | ?????????????????????????????????????????????????? | | ?????????????????????????????????????????????????? | | ?????????????????????????????????????????????????? | | ?????????????????????????????????????????????????? | | ?????????????????????????????????????????????????? | | ?????????????????????????????????????????????????? | | ?????????????????????????????????????????????????? | | ?????????????????????????????????????????????????? | | ?????????????????????????????????????????????????? | | ?????????????????????????????????????????????????? | | ?????????????????????????????????????????????????? | | ?????????????????????????????????????????????????? | +----------------------------------------------------+ Best States ------------- Heat Dissipation 39 Energy Generation 10 Energy Capacity 250 Matter Stores 300 Matter Capacity 300 Sight Range 16 Terrain Scan Range 16 Terrain Scan Density 10 Evasion (%) 55 Recoil Reduction 1 Item Schematics ----------------- None Robot Schematics ------------------ None Fabricated ------------ Nothing Repaired ---------- Imp. Heat Sink | 62% | -10/Materials Studied --------- None Alien Tech Used ----------------- None Achievements -------------- There's More Where That Came From Challenges ------------ None Game ------ Seed HeatPowerDeconstructor Manual? 0 Play Time 00:28:37 Cumulative 660.9 hours Start 2025.11.01 @ 23:29:06 End 2025.11.02 @ 00:18:37 Sessions 1 Manual Loads 0 Difficulty Rogue Special Mode None Game No. 451 Rogue 451 Adventurer 0 Explorer 0 Win Type - Total 1 Types 1/0/0/0/0/0/0/0/0/0 Lore% 41 Gallery% 64 Achievement% 33 Wizard Run 0 Options --------- Layout 1 ASCII 0 Keyboard 0 Movement Mouse Keybinds 0 Fullscreen 1 Font 20/SmallcapsGlow Map View 54x42 Zoom Use 0% Tactical HUD 1 Map Filters NONE Filters NONE Steam 1 RUN: bbcb9d8a-b23a-44ec-a1ca-dba9d37f60e4